fUSD/lending_fUSD_20251115
["ID","MTS","AMOUNT","RATE_DAILY","PERIOD"]
[394064197,1763239850968,-161.80633796,0.0004133,15]
[394064198,1763239850979,-500.0,0.00041331,15]
[394064199,1763239850988,-500.0,0.00041331,15]
[394064200,1763239850997,-500.0,0.00041331,15]
[394064201,1763239851007,-500.0,0.00041331,15]
[394064202,1763239851016,-500.0,0.00041331,15]
[394064203,1763239851023,-500.0,0.00041331,15]
[394064204,1763239851031,-500.0,0.00041331,15]
[394064205,1763239851037,-500.0,0.00041331,15]
[394064206,1763239851043,-300.0,0.00041332,2]
[394064207,1763239851051,-49166.64155631,0.0004134,2]
[394064208,1763239851059,-317.97729457,0.0004134,3]
[394064209,1763239851065,-416.14391168,0.0004134,120]
[394064210,1763239851072,-14142.07715762,0.0004134,15]
[394064211,1763239851087,-3636.82058928,0.0004134,15]
[394064212,1763239851107,-1603.0,0.0002065,2]
[394064213,1763239851114,-1264.4,0.0002365,2]
[394064214,1763239851125,-338.6,0.0002365,2]
[394064215,1763239851132,-1603.0,0.0002665,2]
[394064216,1763239851142,-1603.0,0.0002965,2]
[394064217,1763239851151,-6287.16459079,0.0004134,15]
[394064218,1763239851265,-276.136,0.00026084,2]
[394064219,1763239851276,-547.0,0.00026084,2]
[394064220,1763239851287,-277.184,0.00026084,2]
[394064221,1763239851296,-1603.0,0.0003265,2]
[394064222,1763239851306,-1603.0,0.0003565,2]
[394064223,1763239851315,-500.0,0.00036986,15]
[394064224,1763239851324,-500.0,0.00036986,15]
[394064225,1763239851333,-500.0,0.00036986,15]
[394064226,1763239851342,-500.0,0.00036986,15]
[394064227,1763239851351,-209.86277591,0.00036986,15]
[394064228,1763239851360,-1603.0,0.0003865,2]
[394064229,1763239851370,-14670.82672757,0.0004134,15]
[394064230,1763239851379,-4294.06396412,0.0004134,15]
[394064231,1763239851398,-212.8864193,0.00017323,2]
[394064232,1763239851407,-13560.99168475,0.0004134,15]
[394064233,1763239851416,-210.27993801,0.0004134,2]
[394064234,1763239851428,-160.23918297,0.0004134,28]
[394064235,1763239851437,-210.50284837,0.0004134,2]
[394064236,1763239851447,-3070.98318604,0.0004134,2]
[394064237,1763239851455,-153.87599046,0.0004134,15]
[394064238,1763239851465,-300.0,0.00041343,2]
[394064239,1763239851474,-500.0,0.00041369,2]
[394064240,1763239851484,-500.0,0.00041369,2]
[394064241,1763239851493,-500.0,0.00041369,2]
[394064242,1763239851503,-314.4210101,0.00041369,2]
[394064243,1763239851514,-185.5789899,0.00041369,2]
[394064244,1763239851523,-500.0,0.00041369,2]
[394064245,1763239851532,-500.0,0.00041369,2]
[394064246,1763239851542,-500.0,0.00041369,2]
[394064247,1763239851551,-500.0,0.00041369,2]
[394064248,1763239851560,-500.0,0.00041369,2]
[394064249,1763239851569,-330.08799536,0.00041369,2]
[394064250,1763239851581,-994.81200464,0.00041369,2]
[394064251,1763239851590,-500.0,0.00041369,2]
[394064252,1763239851600,-500.0,0.00041369,2]
[394064253,1763239851610,-3267.52,0.00041369,2]
[394064254,1763239851619,-300.0,0.00041369,2]
[394064255,1763239851629,-350.4,0.00041369,2]
[394064256,1763239851638,-300.0,0.0004137,2]
[394064257,1763239851647,-395.0,0.000414,3]
[394064258,1763239851656,-300.0,0.00041417,2]
[394064259,1763239851665,-390.00795096,0.0004142,13]
[394064260,1763239851677,-254.27736446,0.0004143,7]
[394064261,1763239851687,-1997.98267994,0.0004144,2]
[394064262,1763239851699,-396.13473799,0.0004144,2]
[394064267,1763240164626,767.9439642,0.00016796,4]
[394064273,1763240436215,609.31,0.00026927,120]
[394064274,1763240436546,609.31,0.00029374,120]
[394064278,1763240573634,150.0,0.00019415,120]
[394064302,1763241032017,-300.0,0.00016699,2]
[394064303,1763241032027,-1200.0,0.00016699,2]
[394064304,1763241032036,-300.0,0.00016699,2]
[394064305,1763241032046,-351.65193489,0.000167,2]
[394064306,1763241032055,-8092.76550734,0.000167,2]
[394064308,1763241032066,-500.0,0.00016796,2]
[394064310,1763241032075,-500.0,0.00016796,2]
[394064313,1763241032085,-500.0,0.00016796,2]
[394064314,1763241032095,-233.02142071,0.000168,2]
[394064318,1763241032122,-758.13499137,0.000168,2]
[394064320,1763241032145,-2783.44298792,0.000168,2]
[394064321,1763241032154,-25646.1771877,0.00016997,2]
[394064322,1763241032164,-250.0,0.00017,2]
[394064323,1763241032173,-174.54,0.00017999,2]
[394064324,1763241032183,-150.0,0.00018218,2]
[394064325,1763241032193,-420.0,0.00018245,2]
[394064326,1763241032203,-420.0,0.00018245,2]
[394064327,1763241032212,-1680.0,0.00018336,2]
[394064328,1763241032222,-250.0,0.00018369,2]
[394064329,1763241032231,-195.0,0.00018369,2]
[394064330,1763241032240,-300.62660903,0.00018369,2]
[394064331,1763241032249,-300.0,0.0001837,2]
[394064332,1763241032258,-377.58633016,0.0001837,2]
[394064333,1763241032268,-5000.0,0.0001837,4]
[394064334,1763241032277,-300.0,0.00019,2]
[394064335,1763241032287,-500.0,0.0001902,2]
[394064336,1763241032296,-500.0,0.0001902,2]
[394064338,1763241032306,-500.0,0.0001902,2]
[394064339,1763241032314,-30580.49975334,0.00019021,2]
[394064340,1763241032324,-342.34491125,0.00019037,2]
[394064341,1763241032334,-25646.1771877,0.00019179,2]
[394064342,1763241032343,-1515.41,0.00019352,2]
[394064343,1763241032352,-11124.07,0.00019378,2]
[394064345,1763241032361,-150.0,0.00019415,2]
[394064347,1763241032369,-8092.76550734,0.00019438,2]
[394064349,1763241032378,-200.0,0.00019532,2]
[394064351,1763241032387,-609.31,0.00019583,2]
[394064353,1763241032396,-211.93,0.00019702,2]
[394064355,1763241032405,-342.34491125,0.00019802,2]
[394064357,1763241032414,-168.0,0.00019864,2]
[394064359,1763241032422,-168.0,0.0001992,2]
[394064361,1763241032432,-224.0,0.00019924,2]
[394064363,1763241032446,-168.0,0.00019928,2]
[394064365,1763241032455,-587.0,0.00019933,2]
[394064367,1763241032463,-587.0,0.00019933,2]
[394064369,1763241032472,-153.87599046,0.00019954,2]
[394064371,1763241032482,-201.290895,0.0002,2]
[394064373,1763241032492,-224.0,0.00020054,2]
[394064375,1763241032501,-224.0,0.00020074,2]
[394064377,1763241032511,-3430.0,0.00020094,2]
[394064379,1763241032520,-1318.0,0.00020094,2]
[394064381,1763241032529,-575.0,0.00020094,2]
[394064383,1763241032539,-608.0,0.00020094,2]
[394064385,1763241032548,-821.0,0.00020094,2]
[394064387,1763241032557,-1598.0,0.00020094,2]
[394064389,1763241032566,-793.0,0.00020094,2]
[394064391,1763241032575,-1275.0,0.00020094,2]
[394064393,1763241032584,-907.0,0.00020094,2]
[394064394,1763241032593,-1190.0,0.00020094,2]
[394064395,1763241032601,-1603.0,0.00020094,2]
[394064396,1763241032610,-2351.0,0.00020132,2]
[394064397,1763241032619,-168.0,0.00020176,2]
[394064398,1763241032628,-224.0,0.00020492,2]
[394064399,1763241032637,-224.0,0.000205,2]
[394064400,1763241032646,-224.0,0.00020543,2]
[394064401,1763241032655,-224.0,0.00020557,2]
[394064402,1763241032663,-224.0,0.00020557,2]
[394064403,1763241032672,-342.34491125,0.00020568,2]
[394064405,1763241032681,-224.0,0.00020582,2]
[394064406,1763241032690,-224.0,0.00020705,2]
[394064409,1763241032701,-168.0,0.00020827,2]
[394064411,1763241032710,-224.0,0.00020836,2]
[394064413,1763241032720,-168.0,0.00020907,2]
[394064415,1763241032729,-350.0,0.00021,2]
[394064417,1763241032738,-224.0,0.0002123,2]
[394064419,1763241032747,-342.34491125,0.00021334,2]
[394064421,1763241032757,-25646.1771877,0.00021361,2]
[394064423,1763241032766,-6323.72,0.0002137,2]
[394064425,1763241032775,-224.0,0.00021373,2]
[394064427,1763241032784,-5033.46059779,0.00021488,2]
[394064429,1763241032793,-224.0,0.00021518,2]
[394064431,1763241032802,-3598.32866911,0.00021721,2]
[394064433,1763241032811,-168.0,0.00021747,2]
[394064435,1763241032820,-823.0,0.00021778,2]
[394064437,1763241032829,-605.0,0.00021778,2]
[394064439,1763241032838,-168.0,0.00021834,2]
[394064441,1763241032848,-224.0,0.00021854,2]
[394064443,1763241032857,-224.0,0.00021948,2]
[394064445,1763241032866,-224.0,0.00021975,2]
[394064447,1763241032875,-163.00519291,0.0002201,2]
[394064449,1763241032884,-609.31,0.00022031,2]
[394064451,1763241032893,-342.68725616,0.000221,2]
[394064453,1763241032902,-3292.0,0.00022105,2]
[394064455,1763241032911,-478.96003305,0.00022114,2]
[394064457,1763241032920,-8092.76550734,0.00022176,2]
[394064459,1763241032929,-304.47592556,0.00022511,2]
[394064461,1763241032938,-272.9394521,0.00022889,2]
[394064463,1763241032948,-184.74657092,0.00022889,2]
[394064465,1763241032957,-220.34029918,0.00022889,2]
[394064467,1763241032967,-500.0,0.00022889,2]
[394064469,1763241032976,-482.42809779,0.00022889,2]
[394064471,1763241032986,-500.0,0.00022889,2]
[394064473,1763241032996,-67438.53899502,0.0002289,2]
[394064475,1763241033008,-1029.07354144,0.0002289,2]
[394064477,1763241033019,-1305.76146409,0.0002289,2]
[394064609,1763241037996,-500.0,0.0001902,2]
[394064610,1763241038005,-500.0,0.0001902,2]
[394064611,1763241038015,-447.65907419,0.0001902,2]
[394064612,1763241038024,-36386.49599945,0.0002289,2]
[394064613,1763241038034,-400.0,0.00023,2]
[394064614,1763241038044,-245.74499824,0.00023014,2]
[394064615,1763241038054,-3430.0,0.00023094,2]
[394064616,1763241038063,-1318.0,0.00023094,2]
[394064617,1763241038073,-575.0,0.00023094,2]
[394064618,1763241038086,-608.0,0.00023094,2]
[394064619,1763241038104,-821.0,0.00023094,2]
[394064620,1763241038113,-1598.0,0.00023094,2]
[394064621,1763241038123,-793.0,0.00023094,2]
[394064622,1763241038133,-1275.0,0.00023094,2]
[394064623,1763241038143,-907.0,0.00023094,2]
[394064624,1763241038153,-1190.0,0.00023094,2]
[394064625,1763241038163,-1603.0,0.00023094,2]
[394064626,1763241038172,-2372.00593445,0.00023387,2]
[394064627,1763241038182,-13747.96453693,0.0002345,2]
[394064628,1763241038193,-5620.47999574,0.0002345,2]
[394064629,1763241038205,-1929.90969071,0.00023542,2]
[394064630,1763241038216,-3062.37192109,0.00023542,2]
[394064631,1763241038228,-1030.04000014,0.00023542,2]
[394064633,1763241038239,-1109.46875634,0.00023542,2]
[394064636,1763241038251,-1052.97222922,0.00023542,2]
[394064638,1763241038262,-17461.4145902,0.00023542,2]
[394064640,1763241038271,-9827.2278,0.0002355,2]
[394064642,1763241038281,-1152.0,0.00023794,2]
[394064644,1763241038290,-5875.42,0.00024174,2]
[394064646,1763241038301,-299.99,0.00024174,7]
[394064648,1763241038310,-150.99,0.00024174,2]
[394064649,1763241038318,-1721.82,0.00024174,2]
[394064651,1763241038327,-9999.99,0.00024174,2]
[394064653,1763241038336,-4609.0,0.00024272,2]
[394064655,1763241038345,-609.31,0.00024479,2]
[394064657,1763241038354,-197474.390669,0.000248,3]
[394064660,1763241038364,-500.0,0.00024899,2]
[394064661,1763241038373,-176161.812274,0.000249,3]
[394064664,1763241038383,-32912.3984449,0.00024903,3]
[394064665,1763241038392,-8092.76550734,0.00024913,2]
[394064667,1763241038401,-450.0,0.00025,2]
[394064669,1763241038410,-19368.44453263,0.00025438,2]
[394064670,1763241038420,-150.0,0.00025778,2]
[394064671,1763241038428,-150.0,0.00025778,2]
[394064672,1763241038438,-1613.0,0.00025996,2]
[394064673,1763241038456,-25165.973182,0.00026084,3]
[394064674,1763241038465,-3430.0,0.00026094,2]
[394064675,1763241038474,-1318.0,0.00026094,2]
[394064676,1763241038485,-575.0,0.00026094,2]
[394064677,1763241038494,-608.0,0.00026094,2]
[394064678,1763241038503,-821.0,0.00026094,2]
[394064679,1763241038513,-1598.0,0.00026094,2]
[394064680,1763241038524,-793.0,0.00026094,2]
[394064681,1763241038534,-1275.0,0.00026094,2]
[394064682,1763241038543,-907.0,0.00026094,2]
[394064683,1763241038553,-1190.0,0.00026094,2]
[394064684,1763241038562,-1603.0,0.00026094,2]
[394064685,1763241038571,-6453.0,0.0002665,2]
[394064686,1763241038581,-25165.973182,0.0002677,3]
[394064687,1763241038590,-32912.3984449,0.0002678,3]
[394064688,1763241038600,-164.0,0.00027,7]
[394064689,1763241038608,-500.0,0.00027,2]
[394064690,1763241038617,-153.87599046,0.00027083,2]
[394064691,1763241038626,-1515.41,0.00027093,2]
[394064692,1763241038635,-300.0,0.00027397,7]
[394064693,1763241038644,-513.46,0.00027397,2]
[394064694,1763241038652,-158.35583455,0.00027397,5]
[394064695,1763241038661,-500.0,0.00027397,5]
[394064696,1763241038670,-197.33,0.00027421,7]
[394064697,1763241038679,-19368.44453263,0.00027426,2]
[394064698,1763241038688,-8092.76550734,0.00027651,2]
[394064699,1763241038698,-2000.0,0.000282,2]
[394064700,1763241038710,-150.0,0.00028219,2]
[394064701,1763241038720,-1032.0,0.00028402,2]
[394064702,1763241038729,-2011.0,0.00028549,5]
[394064703,1763241038739,-150.0,0.000286,5]
[394064704,1763241038750,-158.98864731,0.00028994,2]
[394064705,1763241038759,-550.0,0.00029,2]
[394064706,1763241038769,-25165.973182,0.00029039,3]
[394064707,1763241038778,-151.0,0.00029094,7]
[394064708,1763241038788,-151.0,0.00029094,7]
[394064709,1763241038797,-280.87685,0.00029094,7]
[394064710,1763241038807,-151.0,0.00029094,7]
[394064711,1763241038816,-151.0,0.00029094,7]
[394064712,1763241038826,-151.0,0.00029094,7]
[394064713,1763241038835,-151.0,0.00029094,7]
[394064714,1763241038845,-151.0,0.00029094,7]
[394064715,1763241038856,-151.0,0.00029094,7]
[394064716,1763241038865,-151.164679,0.00029094,7]
[394064717,1763241038874,-151.0,0.00029094,7]
[394064718,1763241038884,-151.164679,0.00029094,7]
[394064719,1763241038894,-230.67577,0.00029094,7]
[394064720,1763241038904,-151.164679,0.00029094,7]
[394064721,1763241038914,-155.451642,0.00029094,7]
[394064722,1763241038924,-151.164679,0.00029094,7]
[394064723,1763241038934,-151.0,0.00029094,7]
[394064724,1763241038943,-151.0,0.00029094,7]
[394064725,1763241038954,-151.0,0.00029094,7]
[394064726,1763241038963,-3430.0,0.00029094,2]
[394064727,1763241038973,-1318.0,0.00029094,2]
[394064728,1763241038983,-575.0,0.00029094,2]
[394064729,1763241038992,-608.0,0.00029094,2]
[394064730,1763241039002,-821.0,0.00029094,2]
[394064731,1763241039011,-1598.0,0.00029094,2]
[394064732,1763241039020,-793.0,0.00029094,2]
[394064733,1763241039030,-1275.0,0.00029094,2]
[394064734,1763241039040,-907.0,0.00029094,2]
[394064735,1763241039050,-1190.0,0.00029094,2]
[394064736,1763241039065,-291.096,0.00029094,2]
[394064737,1763241039077,-250.0,0.00029148,5]
[394064738,1763241039087,-228.93022402,0.00029155,30]
[394064739,1763241039097,-2622.0,0.00029262,2]
[394064740,1763241039107,-19368.44453263,0.00029413,2]
[394064741,1763241039117,-240.00925603,0.00029598,3]
[394064742,1763241039127,-350.0,0.00029696,5]
[394064743,1763241039136,-197.33,0.00029893,30]
[394064744,1763241039146,-450.0,0.00030244,5]
[394064745,1763241039155,-25165.973182,0.00030369,3]
[394064746,1763241039164,-32912.3984449,0.00030379,3]
[394064747,1763241039175,-8092.76550734,0.00030389,2]
[394064748,1763241039185,-167.01,0.000304,7]
[394064749,1763241039195,-550.0,0.00030792,5]
[394064750,1763241039206,-536.76285641,0.0003134,5]
[394064751,1763241039215,-19368.44453263,0.00031401,2]
[394064752,1763241039224,-158.98864728,0.00031463,2]
[394064753,1763241039234,-763.45,0.00031628,2]
[394064754,1763241039243,-181.93337755,0.00031733,7]
[394064755,1763241039256,-2000.0,0.000319,2]
[394064756,1763241039265,-1318.0,0.00032094,2]
[394064757,1763241039275,-181.143,0.00032094,2]
[394064758,1763241039284,-608.0,0.00032094,2]
[394064759,1763241039294,-821.0,0.00032094,2]
[394064760,1763241039303,-1598.0,0.00032094,2]
[394064761,1763241039312,-793.0,0.00032094,2]
[394064762,1763241039322,-1275.0,0.00032094,2]
[394064763,1763241039331,-907.0,0.00032094,2]
[394064764,1763241039341,-1190.0,0.00032094,2]
[394064765,1763241039350,-1000.0,0.000322,2]
[394064766,1763241039360,-197.33,0.00032364,30]
[394064767,1763241039369,-25165.973182,0.00033106,3]
[394064768,1763241039379,-150.4,0.00033106,2]
[394064769,1763241039388,-32912.3984449,0.00033117,3]
[394064770,1763241039398,-254.27736447,0.00033117,2]
[394064771,1763241039407,-8092.76550734,0.00033127,2]
[394064772,1763241039417,-151.0,0.00033127,31]
[394064773,1763241039426,-151.0,0.00033127,31]
[394064774,1763241039436,-151.0,0.00033127,31]
[394064775,1763241039449,-151.0,0.00033127,31]
[394064776,1763241039460,-151.0,0.00033127,31]
[394064777,1763241039470,-151.0,0.00033127,31]
[394064778,1763241039479,-151.0,0.00033127,31]
[394064779,1763241039490,-151.0,0.00033127,31]
[394064780,1763241039499,-155.174935,0.00033127,31]
[394064781,1763241039509,-151.0,0.00033127,31]
[394064782,1763241039519,-151.0,0.00033127,31]
[394064783,1763241039528,-255.784164,0.00033127,31]
[394064784,1763241039537,-151.0,0.00033127,31]
[394064785,1763241039547,-151.0,0.00033127,31]
[394064786,1763241039556,-151.0,0.00033127,31]
[394064787,1763241039566,-151.0,0.00033127,31]
[394064788,1763241039575,-151.0,0.00033127,31]
[394064789,1763241039584,-151.0,0.00033127,31]
[394064790,1763241039594,-151.0,0.00033127,31]
[394064791,1763241039603,-151.0,0.00033127,31]
[394064792,1763241039612,-157.228298,0.00033127,31]
[394064793,1763241039621,-157.228298,0.00033127,31]
[394064794,1763241039631,-702.825,0.00033127,30]
[394064795,1763241039640,-19368.44453263,0.00033389,2]
[394064796,1763241039650,-166.66,0.00033602,2]
[394064797,1763241039659,-3251.0,0.000338,3]
[394064798,1763241039668,-158.98864728,0.00033932,2]
[394064799,1763241039678,-150.4,0.00033946,2]
[394064800,1763241039688,-25165.973182,0.00033956,3]
[394064801,1763241039697,-687.409,0.00034032,37]
[394064802,1763241039709,-150.0,0.00034045,37]
[394064803,1763241039718,-153.87599046,0.00034211,15]
[394064804,1763241039728,-5518.0,0.000347,5]
[394064805,1763241039737,-166.66,0.00034711,2]
[394064806,1763241039746,-167.01,0.000348,14]
[394064807,1763241039755,-197.33,0.00034836,30]
[394064808,1763241039765,-1318.0,0.00035094,2]
[394064809,1763241039774,-608.0,0.00035094,2]
[394064810,1763241039783,-821.0,0.00035094,2]
[394064811,1763241039792,-200.401,0.00035094,2]
[394064812,1763241039802,-793.0,0.00035094,2]
[394064813,1763241039811,-709.513,0.00035094,2]
[394064814,1763241039821,-907.0,0.00035094,2]
[394064815,1763241039830,-1190.0,0.00035094,2]
[394064816,1763241039839,-19368.44453263,0.00035377,2]
[394064817,1763241039848,-2000.0,0.000356,2]
[394064818,1763241039857,-166.66,0.0003582,2]
[394064819,1763241039866,-8092.76550734,0.00035864,2]
[394064820,1763241039876,-1000.0,0.000359,2]
[394064821,1763241039885,-209.1860858,0.00035993,120]
[394064822,1763241040064,-158.98864728,0.00036402,2]
[394064823,1763241040075,-25165.973182,0.00036404,4]
[394064824,1763241040084,-150.4,0.00036404,2]
[394064825,1763241040093,-32912.3984449,0.00036414,4]
[394064826,1763241040103,-889.94,0.0003655,5]
[394064827,1763241040113,-151.0,0.0003659,31]
[394064828,1763241040122,-151.0,0.0003659,31]
[394064829,1763241040132,-201.012645,0.0003659,31]
[394064830,1763241040142,-151.0,0.0003659,31]
[394064831,1763241040152,-151.0,0.0003659,31]
[394064832,1763241040161,-151.0,0.0003659,31]
[394064833,1763241040171,-151.0,0.0003659,31]
[394064834,1763241040181,-151.0,0.0003659,31]
[394064835,1763241040190,-151.0,0.0003659,31]
[394064836,1763241040199,-151.0,0.0003659,31]
[394064837,1763241040209,-151.0,0.0003659,31]
[394064838,1763241040219,-151.0,0.0003659,31]
[394064839,1763241040228,-151.0,0.0003659,31]
[394064840,1763241040237,-151.0,0.0003659,31]
[394064841,1763241040247,-151.0,0.0003659,31]
[394064842,1763241040257,-151.0,0.0003659,31]
[394064843,1763241040266,-284.25324,0.0003659,31]
[394064844,1763241040276,-151.0,0.0003659,31]
[394064845,1763241040285,-151.0,0.0003659,31]
[394064846,1763241040294,-284.25324,0.0003659,31]
[394064847,1763241040304,-284.25324,0.0003659,31]
[394064848,1763241040313,-284.25324,0.0003659,31]
[394064849,1763241040322,-151.0,0.0003659,31]
[394064850,1763241040332,-151.0,0.0003659,31]
[394064851,1763241040341,-1348.898314,0.0003659,28]
[394064852,1763241040350,-1348.898314,0.0003659,28]
[394064853,1763241040359,-1348.898314,0.0003659,28]
[394064854,1763241040369,-1348.898314,0.0003659,28]
[394064855,1763241040378,-151.0,0.0003659,31]
[394064856,1763241040388,-151.0,0.0003659,31]
[394064857,1763241040397,-151.0,0.0003659,31]
[394064858,1763241040407,-151.0,0.0003659,31]
[394064859,1763241040416,-151.0,0.0003659,31]
[394064860,1763241040425,-151.0,0.0003659,31]
[394064861,1763241040433,-166.66,0.00036929,2]
[394064862,1763241040445,-500.0,0.00036986,15]
[394064863,1763241040455,-500.0,0.00036986,15]
[394064864,1763241040464,-500.0,0.00036986,15]
[394064865,1763241040473,-500.0,0.00036986,15]
[394064866,1763241040483,-500.0,0.00036986,15]
[394064867,1763241040492,-500.0,0.00036986,15]
[394064868,1763241040502,-500.0,0.00036986,15]
[394064869,1763241040512,-317.19363347,0.00036986,15]
[394064870,1763241040524,-500.0,0.00036986,15]
[394064871,1763241040534,-500.0,0.00037089,120]
[394064872,1763241040543,-179.21101701,0.00037089,30]
[394064873,1763241040553,-197.33,0.00037308,60]
[394064874,1763241040562,-19368.44453263,0.00037364,2]
[394064875,1763241040571,-150.0,0.00037449,30]
[394064876,1763241040581,-209.1860858,0.0003782,120]
[394064877,1763241040590,-166.66,0.00038038,2]
[394064878,1763241040600,-150.0,0.0003808,4]
[394064879,1763241040610,-500.0,0.00038093,2]
[394064880,1763241040619,-608.0,0.00038094,2]
[394064881,1763241040629,-365.048,0.00038094,2]
[394064882,1763241040638,-907.0,0.00038094,2]
[394064883,1763241040647,-1190.0,0.00038094,2]
[394064884,1763241040657,-150.4,0.00038316,2]
[394064885,1763241040666,-25165.973182,0.00038326,4]
[394064886,1763241040675,-151.0,0.00038326,31]
[394064887,1763241040684,-151.0,0.00038326,31]
[394064888,1763241040693,-151.0,0.00038326,31]
[394064889,1763241040702,-151.0,0.00038326,31]
[394064890,1763241040711,-151.0,0.00038326,31]
[394064891,1763241040720,-155.980338,0.00038326,31]
[394064892,1763241040729,-151.0,0.00038326,31]
[394064893,1763241040738,-151.0,0.00038326,31]
[394064894,1763241040747,-151.164679,0.00038326,31]
[394064895,1763241040757,-151.0,0.00038326,31]
[394064896,1763241040766,-151.164679,0.00038326,31]
[394064897,1763241040776,-151.164679,0.00038326,31]
[394064898,1763241040785,-151.164679,0.00038326,31]
[394064899,1763241040794,-151.0,0.00038326,31]
[394064900,1763241040804,-159.47094,0.00038326,31]
[394064901,1763241040813,-151.0,0.00038336,31]
[394064902,1763241040822,-151.0,0.00038336,31]
[394064903,1763241040832,-151.0,0.00038336,31]
[394064904,1763241040841,-151.0,0.00038336,31]
[394064905,1763241040851,-500.0,0.00038356,2]
[394064906,1763241040860,-1633.76,0.00038356,2]
[394064907,1763241040869,-317.03300854,0.00038356,2]
[394064908,1763241040879,-662.45,0.00038356,2]
[394064909,1763241040888,-300.0,0.00038356,2]
[394064910,1763241040897,-500.0,0.00038356,2]
[394064911,1763241040907,-32912.3984449,0.00038592,4]
[394064912,1763241040917,-8092.76550734,0.00038602,2]
[394064913,1763241040926,-500.0,0.0003863,2]
[394064914,1763241040935,-1633.76,0.0003863,2]
[394064915,1763241040944,-662.45,0.0003863,2]
[394064916,1763241040955,-300.0,0.0003863,2]
[394064917,1763241040965,-274.96797838,0.0003863,2]
[394064918,1763241040975,-167.01,0.000387,14]
[394064919,1763241040984,-152.02,0.00038771,120]
[394064920,1763241040993,-150.4,0.00038862,2]
[394064921,1763241041003,-158.98864728,0.00038871,2]
[394064922,1763241041012,-152.02,0.00038871,120]
[394064923,1763241041021,-25165.973182,0.00038872,4]
[394064924,1763241041031,-500.0,0.00038904,2]
[394064925,1763241041041,-1633.76,0.00038904,2]
[394064926,1763241041051,-662.45,0.00038904,2]
[394064927,1763241041060,-300.0,0.00038904,2]
[394064928,1763241041070,-152.02,0.00038971,120]
[394064929,1763241041079,-152.02,0.00039071,120]
[394064930,1763241041088,-166.66,0.00039148,2]
[394064931,1763241041098,-150.0,0.00039149,20]
[394064932,1763241041107,-152.02,0.00039171,120]
[394064933,1763241041117,-500.0,0.00039178,2]
[394064934,1763241041126,-1633.76,0.00039178,2]
[394064935,1763241041136,-662.45,0.00039178,2]
[394064936,1763241041146,-300.0,0.00039178,2]
[394064937,1763241041155,-152.02,0.00039271,120]
[394064938,1763241041164,-2000.0,0.000393,2]
[394064939,1763241041173,-19368.44453263,0.00039352,2]
[394064940,1763241041183,-892.5,0.00039357,30]
[394064941,1763241041192,-152.02,0.00039371,120]
[394064942,1763241041202,-247.82645311,0.00039421,2]
[394064943,1763241041211,-500.0,0.00039452,2]
[394064944,1763241041220,-1633.76,0.00039452,2]
[394064945,1763241041230,-662.45,0.00039452,2]
[394064946,1763241041239,-300.0,0.00039452,2]
[394064947,1763241041248,-152.02,0.00039471,120]
[394064948,1763241041258,-25165.973182,0.00039491,4]
[394064949,1763241041267,-150.4,0.00039491,2]
[394064950,1763241041276,-32912.3984449,0.00039501,4]
[394064951,1763241041286,-25165.973182,0.00039501,4]
[394064952,1763241041296,-150.4,0.00039501,2]